fUSD/lending_fUSD_20241004
["ID","MTS","AMOUNT","RATE_DAILY","PERIOD"]
[339854775,1728071445151,-500.0,0.00036989,120]
[339854776,1728071445160,-500.0,0.00036989,120]
[339854777,1728071445169,-500.0,0.00036989,120]
[339854778,1728071445178,-365.24804316,0.00036989,120]
[339854779,1728071445187,-560.45,0.00036989,120]
[339854780,1728071445196,-500.0,0.00036989,120]
[339854781,1728071445205,-500.0,0.00036989,120]
[339854782,1728071445214,-500.0,0.00036989,120]
[339854783,1728071445223,-500.0,0.00036989,120]
[339854784,1728071445233,-500.0,0.00036989,120]
[339854785,1728071445242,-500.0,0.00036989,120]
[339854786,1728071445250,-500.0,0.00036989,120]
[339854787,1728071445259,-500.0,0.00036989,120]
[339854788,1728071445268,-500.0,0.00036989,120]
[339854789,1728071445278,-661.07,0.00036989,120]
[339854790,1728071445293,-492.53965501,0.00036989,120]
[339854791,1728071445320,-7.46034499,0.00036989,120]
[339854792,1728071445329,-500.0,0.00036989,120]
[339854793,1728071445339,-500.0,0.00036989,120]
[339854794,1728071445348,-500.0,0.00036989,120]
[339854795,1728071445357,-500.0,0.00036989,120]
[339854796,1728071445367,-500.0,0.00036989,120]
[339854797,1728071445377,-500.0,0.00036989,120]
[339854798,1728071445386,-648.76,0.00036989,120]
[339854799,1728071445395,-500.0,0.00036989,14]
[339854800,1728071445405,-500.0,0.00036989,120]
[339854801,1728071445415,-500.0,0.00036989,120]
[339854802,1728071445424,-500.0,0.00036989,7]
[339854803,1728071445434,-500.0,0.00036989,120]
[339854804,1728071445443,-500.0,0.00036989,120]
[339854805,1728071445452,-500.0,0.00036989,120]
[339854806,1728071445461,-500.0,0.00036989,120]
[339854807,1728071445470,-619.44,0.00036989,120]
[339854808,1728071445479,-688.32,0.00036989,120]
[339854809,1728071445489,-500.0,0.00036989,120]
[339854810,1728071445498,-500.0,0.00036989,120]
[339854811,1728071445507,-500.0,0.00036989,120]
[339854812,1728071445516,-500.0,0.00036989,120]
[339854813,1728071445526,-500.0,0.00036989,120]
[339854814,1728071445544,-500.0,0.00036989,120]
[339854815,1728071445555,-500.0,0.00036989,120]
[339854816,1728071445564,-500.0,0.00036989,120]
[339854817,1728071445573,-558.73,0.00036989,120]
[339854818,1728071445583,-500.0,0.00036989,120]
[339854819,1728071445592,-500.0,0.00036989,120]
[339854820,1728071445602,-500.0,0.00036989,120]
[339854821,1728071445611,-510.25,0.00036989,120]
[339854822,1728071445621,-500.0,0.00036989,120]
[339854823,1728071445630,-500.0,0.00036989,120]
[339854824,1728071445639,-500.0,0.00036989,120]
[339854825,1728071445647,-500.0,0.00036989,120]
[339854826,1728071445656,-500.0,0.00036989,120]
[339854827,1728071445665,-500.0,0.00036989,120]
[339854828,1728071445675,-500.0,0.00036989,120]
[339854829,1728071445684,-500.0,0.00036989,120]
[339854830,1728071445693,-500.0,0.00036989,120]
[339854831,1728071445702,-500.0,0.00036989,120]
[339854832,1728071445711,-500.0,0.00036989,120]
[339854833,1728071445720,-500.0,0.00036989,120]
[339854834,1728071445729,-585.26,0.00036989,120]
[339854835,1728071445738,-500.0,0.00036989,120]
[339854836,1728071445747,-500.0,0.00036989,120]
[339854837,1728071445756,-500.0,0.00036989,120]
[339854839,1728071445768,-500.0,0.00036989,120]
[339854840,1728071445778,-500.0,0.00036989,120]
[339854841,1728071445789,-500.0,0.00036989,120]
[339854842,1728071445799,-768.09,0.00036989,120]
[339854843,1728071445808,-500.0,0.00036989,120]
[339854844,1728071445818,-500.0,0.00036989,120]
[339854845,1728071445830,-500.0,0.00036989,120]
[339854846,1728071445839,-500.0,0.00036989,120]
[339854847,1728071445848,-500.0,0.00036989,120]
[339854848,1728071445858,-3200.94,0.00036989,120]
[339854849,1728071445868,-788.95,0.00036989,120]
[339854850,1728071445877,-500.0,0.00036989,120]
[339854851,1728071445886,-500.0,0.00036989,120]
[339854852,1728071445895,-500.0,0.00036989,120]
[339854853,1728071445907,-500.0,0.00036989,120]
[339854854,1728071445916,-713.49,0.00036989,120]
[339854855,1728071445926,-544.16,0.00036989,120]
[339854856,1728071445936,-529.56,0.00036989,120]
[339854857,1728071445946,-813.51,0.00036989,120]
[339854858,1728071445956,-500.0,0.00036989,120]
[339854859,1728071445965,-882.64,0.00036989,120]
[339854860,1728071445975,-500.0,0.00036989,120]
[339854861,1728071445986,-655.94,0.00036989,120]
[339854862,1728071445996,-905.4,0.00036989,120]
[339854863,1728071446006,-500.0,0.00036989,120]
[339854864,1728071446016,-500.0,0.00036989,120]
[339854865,1728071446025,-500.0,0.00036989,120]
[339854866,1728071446037,-233.01714655,0.00036989,120]
[339854867,1728071446046,-500.0,0.00036989,120]
[339854868,1728071446055,-500.0,0.00036989,120]
[339854869,1728071446065,-500.0,0.00036989,120]
[339854870,1728071446074,-500.0,0.00036989,120]
[339854871,1728071446084,-500.0,0.00036989,120]
[339854872,1728071446096,-500.0,0.00036989,120]
[339854873,1728071446105,-2057.77,0.00036989,120]
[339854874,1728071446115,-500.0,0.00036989,120]
[339854875,1728071446125,-500.0,0.00036989,120]
[339854876,1728071446135,-500.0,0.00036989,120]
[339854877,1728071446146,-617.40401684,0.00036989,120]
[339854878,1728071446156,-500.0,0.00036989,120]
[339854879,1728071446166,-500.0,0.00036989,120]
[339854880,1728071446175,-673.73,0.00036989,120]
[339854881,1728071446185,-652.72,0.00036989,120]
[339854882,1728071446195,-500.0,0.00036989,120]
[339854883,1728071446204,-631.21,0.00036989,120]
[339854884,1728071446214,-509.71,0.00036989,120]
[339854886,1728071446223,-150.0,0.00036989,120]
[339854887,1728071446232,-500.0,0.00036989,120]
[339854889,1728071446241,-500.0,0.00036989,120]
[339854891,1728071446252,-500.0,0.00036989,120]
[339854893,1728071446262,-1062.4,0.00036989,120]
[339854895,1728071446273,-500.0,0.00036989,120]
[339854896,1728071446286,-500.0,0.00036989,120]
[339854897,1728071446296,-722.86,0.00036989,120]
[339854898,1728071446306,-500.0,0.00036989,120]
[339854899,1728071446317,-500.0,0.00036989,120]
[339854900,1728071446326,-500.0,0.00036989,120]
[339854901,1728071446336,-500.0,0.00036989,120]
[339854902,1728071446345,-500.0,0.00036989,120]
[339854903,1728071446356,-503.12521712,0.00036989,120]
[339854904,1728071446367,-500.0,0.00036989,120]
[339854905,1728071446377,-500.0,0.00036989,120]
[339854906,1728071446387,-534.18,0.00036989,120]
[339854907,1728071446396,-1961.98,0.00036989,120]
[339854908,1728071446406,-500.0,0.00036989,120]
[339854909,1728071446416,-768.14,0.00036989,120]
[339854910,1728071446426,-500.0,0.00036989,120]
[339854911,1728071446436,-500.0,0.00036989,120]
[339854912,1728071446447,-500.0,0.00036989,120]
[339854913,1728071446457,-500.0,0.00036989,120]
[339854914,1728071446467,-500.0,0.00036989,120]
[339854915,1728071446477,-500.0,0.00036989,120]
[339854916,1728071446487,-1225.27,0.00036989,120]
[339854917,1728071446496,-413.64831285,0.00036989,120]
[339854918,1728071446510,-436.12168715,0.00036989,120]
[339854919,1728071446520,-2210.05,0.00036989,120]
[339854920,1728071446532,-377.42831285,0.00036989,120]
[339854921,1728071446545,-122.57168715,0.00036989,120]
[339854922,1728071446555,-500.0,0.00036989,120]
[339854923,1728071446564,-770.08974797,0.0003699,6]
[339854924,1728071446838,-597.225,0.00036988,120]
[339854925,1728071446851,-44.835,0.00036988,120]
[339854926,1728071446863,-500.0,0.00036988,120]
[339854927,1728071446874,-3322.27442859,0.0003699,6]
[339854928,1728071446884,-200.93499159,0.00036997,2]
[339854929,1728071446895,-716.29,0.00036998,120]
[339854930,1728071446906,-1181.64,0.00036998,120]
[339854931,1728071446916,-617.79,0.00036998,120]
[339854932,1728071446926,-500.0,0.00036998,120]
[339854933,1728071446938,-500.0,0.00036998,120]
[339854934,1728071446949,-4235.04,0.00036998,120]
[339854935,1728071446960,-1861.83,0.00036998,120]
[339854936,1728071446971,-2102.19,0.00036998,120]
[339854937,1728071446981,-500.0,0.00036998,120]
[339854938,1728071446991,-500.0,0.00036998,120]
[339854939,1728071447005,-2322.67,0.00036998,120]
[339854940,1728071447016,-3184.05,0.00036998,120]
[339854941,1728071447026,-937.72,0.00036998,120]
[339854942,1728071447036,-500.0,0.00036998,120]
[339854943,1728071447046,-595.85555762,0.00036998,120]
[339854944,1728071447056,-500.0,0.00036998,120]
[339854945,1728071447066,-500.0,0.00036998,120]
[339854946,1728071447076,-361.54,0.00036998,120]
[339854947,1728071447085,-612.12293851,0.00036998,120]
[339854948,1728071447098,-196.78347626,0.00036998,120]
[339854949,1728071447108,-500.0,0.00036998,120]
[339854950,1728071447118,-709.64,0.00036998,120]
[339854951,1728071447128,-500.0,0.00036998,120]
[339854952,1728071447138,-500.0,0.00036998,120]
[339854953,1728071447148,-635.05,0.00036998,120]
[339854954,1728071447158,-500.0,0.00036998,120]
[339854955,1728071447168,-500.0,0.00036998,120]
[339854956,1728071447179,-500.0,0.00036998,120]
[339854957,1728071447189,-500.0,0.00036998,120]
[339854958,1728071447200,-1056.31,0.00036998,120]
[339854959,1728071447210,-500.0,0.00036998,120]
[339854960,1728071447220,-500.0,0.00036998,120]
[339854961,1728071447230,-1924.2,0.00036998,120]
[339854962,1728071447241,-500.0,0.00036998,120]
[339854963,1728071447251,-500.0,0.00036998,120]
[339854964,1728071447262,-500.0,0.00036998,120]
[339854965,1728071447271,-500.0,0.00036998,120]
[339854966,1728071447282,-500.0,0.00036998,120]
[339854967,1728071447293,-500.0,0.00036998,120]
[339854968,1728071447302,-500.0,0.00036998,120]
[339854969,1728071447312,-653.98,0.00036998,120]
[339854970,1728071447323,-1030.48,0.00036998,120]
[339854971,1728071447333,-504.42,0.00036998,120]
[339854972,1728071447343,-500.0,0.00036998,120]
[339854973,1728071447354,-500.0,0.00036998,120]
[339854974,1728071447364,-500.0,0.00036998,120]
[339854975,1728071447374,-500.0,0.00036998,120]
[339854976,1728071447384,-500.0,0.00036998,120]
[339854977,1728071447395,-500.0,0.00036998,120]
[339854978,1728071447405,-1304.42,0.00036998,120]
[339854979,1728071447415,-500.0,0.00036998,120]
[339854980,1728071447426,-557.24,0.00036998,120]
[339854981,1728071447436,-706.41,0.00036998,120]
[339854982,1728071447446,-1181.56,0.00036998,24]
[339854983,1728071447456,-500.0,0.00036998,120]
[339854984,1728071447466,-2483.06,0.00036998,120]
[339854985,1728071447477,-500.0,0.00036998,120]
[339854986,1728071447486,-1089.87,0.00036998,120]
[339854987,1728071447496,-300.0,0.00036999,30]
[339854988,1728071447506,-300.0,0.00036999,30]
[339854989,1728071447516,-300.0,0.00036999,30]
[339854990,1728071447526,-500.0,0.00036999,120]
[339854991,1728071447536,-573.91,0.00036999,120]
[339854992,1728071447546,-500.0,0.00036999,120]
[339854993,1728071447556,-500.0,0.00036999,120]
[339854994,1728071447568,-500.0,0.00036999,120]
[339854995,1728071447578,-310.49,0.00036999,120]
[339854996,1728071447588,-500.0,0.00036999,120]
[339854997,1728071447598,-500.0,0.00036999,120]
[339854998,1728071447608,-500.0,0.00036999,120]
[339854999,1728071447619,-1376.89,0.00036999,120]
[339855000,1728071447629,-500.0,0.00036999,120]
[339855001,1728071447639,-500.0,0.00036999,120]
[339855002,1728071447649,-500.0,0.00036999,120]
[339855003,1728071447661,-532.06,0.00036999,120]
[339855004,1728071447673,-500.0,0.00036999,120]
[339855005,1728071447684,-500.0,0.00036999,120]
[339855006,1728071447696,-500.0,0.00036999,7]
[339855007,1728071447707,-500.0,0.00036999,120]
[339855008,1728071447717,-500.0,0.00036999,120]
[339855009,1728071447730,-500.0,0.00036999,120]
[339855010,1728071447741,-500.0,0.00036999,120]
[339855011,1728071447751,-500.0,0.00036999,120]
[339855012,1728071447760,-500.0,0.00036999,120]
[339855013,1728071447771,-168.3654109,0.00036999,120]
[339855014,1728071447781,-500.0,0.00036999,120]
[339855015,1728071447790,-500.0,0.00036999,120]
[339855016,1728071447800,-884.21,0.00036999,120]
[339855017,1728071447810,-500.0,0.00036999,120]
[339855018,1728071447824,-500.0,0.00036999,120]
[339855019,1728071447840,-500.0,0.00036999,120]
[339855020,1728071447850,-500.0,0.00036999,120]
[339855021,1728071447859,-500.0,0.00036999,120]
[339855022,1728071447869,-500.0,0.00036999,120]
[339855023,1728071447879,-500.0,0.00036999,120]
[339855024,1728071447888,-500.0,0.00036999,120]
[339855025,1728071447898,-500.0,0.00036999,120]
[339855026,1728071447908,-500.0,0.00036999,120]
[339855027,1728071447918,-500.0,0.00036999,120]
[339855028,1728071447928,-500.0,0.00036999,120]
[339855029,1728071447937,-500.0,0.00036999,120]
[339855030,1728071447947,-500.0,0.00036999,120]
[339855031,1728071447957,-500.0,0.00036999,120]
[339855032,1728071447967,-500.0,0.00036999,120]
[339855033,1728071447976,-500.0,0.00036999,120]
[339855034,1728071447985,-500.0,0.00036999,120]
[339855035,1728071447995,-500.0,0.00036999,120]
[339855036,1728071448004,-500.0,0.00036999,120]
[339855037,1728071448014,-500.0,0.00036999,120]
[339855038,1728071448023,-500.0,0.00036999,120]
[339855039,1728071448034,-500.0,0.00036999,120]
[339855040,1728071448044,-500.0,0.00036999,120]
[339855041,1728071448054,-500.0,0.00036999,120]
[339855042,1728071448063,-500.0,0.00036999,120]
[339855043,1728071448073,-500.0,0.00036999,120]
[339855044,1728071448083,-161904.3265952,0.00037,15]
[339855045,1728071448112,-38095.6734048,0.00037,15]
[339855046,1728071448122,-9166.72679475,0.00037,15]
[339855047,1728071448141,-2957.30508486,0.00037,15]
[339855048,1728071456155,160.66,0.00010959,2]
[339855050,1728072109778,163.01,0.00010959,2]
[339855051,1728072394814,250.0,0.00013,2]
[339855079,1728072631795,-3900.0,0.00017259,2]
[339855080,1728072631849,-871.72091411,0.00017259,2]
[339855081,1728072631861,-291.26630725,0.00017259,2]
[339855082,1728072631872,-1684.98777253,0.00017259,2]
[339855083,1728072631883,-1467.87324433,0.00017259,2]
[339855084,1728072631906,-1430.73728368,0.00017259,2]
[339855085,1728072631915,-3015.808903,0.00032571,2]
[339855086,1728072631924,-152.0,0.00033,120]
[339855087,1728072631933,-3001.0,0.00033,4]
[339855088,1728072631943,-296.31,0.00033224,2]
[339855089,1728072631952,-801.56,0.00033287,3]
[339855090,1728072631961,-230.27365888,0.00033288,7]
[339855091,1728072631971,-352.22,0.00033288,2]
[339855092,1728072631982,-499.99,0.00033288,2]
[339855093,1728072631991,-1610.26,0.00033288,2]
[339855094,1728072632000,-205.84,0.00033288,2]
[339855095,1728072632010,-150.99,0.00033288,2]
[339855096,1728072632020,-200.0,0.00034888,2]
[339855097,1728072632029,-178.26,0.00034989,2]
[339855098,1728072632038,-250.0,0.00035027,2]
[339855099,1728072632047,-250.0,0.00035127,120]
[339855100,1728072632058,-177.71,0.00035261,2]
[339855101,1728072632067,-150.0,0.0003534,2]
[339855102,1728072632076,-239.15,0.00035374,2]
[339855104,1728072632085,-202.86,0.0003538,2]
[339855106,1728072632094,-300.0,0.00035381,2]
[339855108,1728072632104,-397.50690955,0.00035382,2]
[339855110,1728072632116,-604.98,0.00035382,2]
[339855114,1728072632141,-22897.51309045,0.00035382,2]
[339855116,1728072632151,-211.4,0.00035389,2]
[339855118,1728072632160,-168.18,0.00035425,120]
[339855120,1728072632169,-500.0,0.00035429,2]
[339855121,1728072632178,-296.31,0.00035488,2]
[339855123,1728072632187,-945.0,0.00035508,2]
[339855125,1728072632198,-3334.76125798,0.00035575,2]
[339855127,1728072632207,-1000.0,0.00035784,2]
[339855129,1728072632216,-187.7597,0.00035992,30]
[339855131,1728072632226,-9200.61693639,0.00036,30]
[339855132,1728072632244,-1000.0,0.00036,7]
[339855134,1728072632254,-1000.0,0.00036,7]
[339855136,1728072632263,-3000.0,0.00036,45]
[339855138,1728072632272,-1000.0,0.000361,22]
[339855140,1728072632282,-1000.0,0.000361,30]
[339855142,1728072632291,-1000.0,0.000361,27]
[339855144,1728072632300,-1000.0,0.000361,19]
[339855146,1728072632309,-1000.0,0.000361,8]
[339855148,1728072632318,-457.0,0.000361,7]
[339855150,1728072632327,-177.589,0.000361,44]
[339855151,1728072632337,-190.42,0.00036274,2]
[339855153,1728072632347,-2019.0,0.00036341,109]
[339855155,1728072632356,-74.16129182,0.00036628,2]
[339855157,1728072632367,-907.43229404,0.00036628,2]
[339855160,1728072632387,-34513.40641414,0.00036628,2]
[339855162,1728072632397,-1000.0,0.00036629,2]
[339855164,1728072632406,-157.100504,0.00036648,119]
[339855166,1728072632415,-157.100504,0.00036698,118]
[339855168,1728072632425,-200.0,0.000367,13]
[339855170,1728072632434,-157.100504,0.00036748,119]
[339855172,1728072632443,-360.00423274,0.00036753,2]
[339855174,1728072632453,-157.100504,0.00036798,119]
[339855176,1728072632462,-979.244766,0.000368,2]
[339855178,1728072632472,-500.0,0.000368,13]
[339855179,1728072632482,-157.100504,0.00036848,120]
[339855181,1728072632491,-59739.27520282,0.0003688,2]
[339855214,1728072637846,-1000.0,0.00035967,2]
[339855215,1728072637855,-2365.95,0.0003688,2]
[339855216,1728072637899,-364.55288824,0.0003688,2]
[339855217,1728072638008,-1231.76374629,0.0003688,2]
[339855218,1728072638020,-1000.0,0.0003688,2]
[339855220,1728072640037,-42392.36639221,0.0003688,2]
[339855221,1728072640047,-407.49378438,0.00036886,2]
[339855222,1728072640058,-8487.1344,0.00036886,2]
[339855223,1728072640067,-5851.7157,0.00036886,2]
[339855224,1728072640076,-4899.9963,0.00036888,2]
[339855225,1728072640085,-15050.5119,0.00036889,2]
[339855226,1728072640095,-6498.0575,0.0003689,2]
[339855227,1728072640104,-157.100504,0.00036898,119]
[339855228,1728072640113,-407.49378435,0.00036898,2]
[339855229,1728072640123,-800.0,0.000369,13]
[339855230,1728072640132,-214.65479573,0.000369,11]
[339855231,1728072640142,-407.49378435,0.00036911,2]
[339855232,1728072640151,-157.100504,0.00036948,120]
[339855233,1728072640160,-258.78091464,0.00036948,10]
[339855234,1728072640169,-157.36847043,0.00036948,10]
[339855235,1728072640178,-175.57734159,0.00036948,2]
[339855236,1728072640187,-214.65479573,0.00036948,11]
[339855237,1728072640197,-4856.50562432,0.00036977,6]
[339855238,1728072640206,-1821.18960912,0.00036978,6]
[339855239,1728072640215,-1821.18960912,0.00036979,6]
[339855240,1728072640224,-500.0,0.00036986,120]
[339855241,1728072640233,-500.0,0.00036986,120]
[339855242,1728072640243,-500.0,0.00036986,120]
[339855243,1728072640252,-500.0,0.00036986,120]
[339855244,1728072640261,-500.0,0.00036986,120]
[339855245,1728072640272,-500.0,0.00036986,120]
[339855246,1728072640282,-500.0,0.00036986,120]
[339855247,1728072640292,-500.0,0.00036986,7]
[339855248,1728072640302,-621.73,0.00036986,120]
[339855250,1728072640312,-500.0,0.00036986,120]
[339855251,1728072640323,-500.0,0.00036986,120]
[339855252,1728072640333,-500.0,0.00036986,120]
[339855253,1728072640343,-593.63,0.00036986,120]
[339855254,1728072640355,-500.0,0.00036986,120]
[339855256,1728072640365,-500.0,0.00036986,120]
[339855257,1728072640374,-500.0,0.00036986,120]
[339855258,1728072640384,-500.0,0.00036986,120]
[339855259,1728072640394,-500.0,0.00036986,120]
[339855260,1728072640404,-500.0,0.00036986,120]
[339855261,1728072640414,-500.0,0.00036986,120]
[339855262,1728072640423,-736.09,0.00036986,120]
[339855263,1728072640434,-500.0,0.00036986,120]
[339855264,1728072640443,-500.0,0.00036986,120]
[339855265,1728072640452,-521.49,0.00036986,120]
[339855266,1728072640463,-845.86,0.00036986,120]
[339855267,1728072640472,-867.68,0.00036986,120]
[339855268,1728072640482,-500.0,0.00036986,120]
[339855269,1728072640492,-500.0,0.00036986,120]
[339855270,1728072640502,-500.0,0.00036986,120]
[339855271,1728072640511,-500.0,0.00036986,120]
[339855272,1728072640522,-645.66,0.00036986,120]
[339855273,1728072640532,-625.52,0.00036986,120]
[339855274,1728072640543,-500.0,0.00036986,120]
[339855275,1728072640554,-692.74,0.00036986,120]
[339855276,1728072640564,-526.31,0.00036986,120]
[339855277,1728072640573,-500.0,0.00036986,120]
[339855278,1728072640583,-542.75,0.00036986,120]
[339855279,1728072640592,-500.0,0.00036986,120]
[339855280,1728072640601,-1018.13,0.00036986,120]
[339855281,1728072640611,-500.0,0.00036986,120]
[339855282,1728072640620,-500.0,0.00036986,120]
[339855283,1728072640629,-733.84,0.00036986,120]
[339855284,1728072640639,-500.0,0.00036986,120]
[339855285,1728072640648,-500.0,0.00036986,120]
[339855286,1728072640658,-500.0,0.00036986,120]
[339855287,1728072640668,-500.0,0.00036986,120]
[339855288,1728072640677,-500.0,0.00036986,120]
[339855289,1728072640687,-500.0,0.00036986,120]
[339855290,1728072640696,-500.0,0.00036986,120]
[339855291,1728072640706,-500.0,0.00036986,120]
[339855292,1728072640715,-632.41,0.00036986,120]
[339855293,1728072640726,-515.7,0.00036986,120]
[339855294,1728072640736,-500.0,0.00036986,120]
[339855295,1728072640745,-500.0,0.00036986,120]
[339855296,1728072640755,-615.85,0.00036986,120]
[339855297,1728072640768,-500.0,0.00036986,120]
[339855298,1728072640779,-814.37,0.00036986,120]
[339855299,1728072640790,-749.53,0.00036986,120]
[339855300,1728072640801,-1419.44,0.00036986,120]
[339855301,1728072640810,-1657.52,0.00036986,120]
[339855302,1728072640820,-562.7,0.00036986,120]
[339855303,1728072640830,-500.0,0.00036986,120]
[339855304,1728072640841,-500.0,0.00036986,120]
[339855305,1728072640851,-500.0,0.00036986,120]
[339855306,1728072640861,-2805.53,0.00036986,120]
[339855307,1728072640872,-508.83,0.00036986,120]
[339855308,1728072640883,-615.24,0.00036986,120]
[339855309,1728072640893,-500.0,0.00036986,120]
[339855310,1728072640903,-500.0,0.00036986,120]
[339855311,1728072640914,-1212.97,0.00036986,120]
[339855312,1728072640926,-500.0,0.00036986,120]
[339855313,1728072640937,-1217.4,0.00036986,120]
[339855314,1728072640947,-500.0,0.00036986,120]
[339855315,1728072640956,-1231.73,0.00036986,120]
[339855316,1728072640965,-413.5563879,0.00036986,120]
[339855317,1728072640977,-500.0,0.00036986,120]
[339855318,1728072640987,-153.81985195,0.00036986,120]
[339855319,1728072640997,-619.13025433,0.00036986,120]
[339855320,1728072641006,-532.52,0.00036986,120]
[339855321,1728072641015,-855.6,0.00036986,120]
[339855322,1728072641024,-500.0,0.00036986,120]
[339855323,1728072641034,-500.0,0.00036986,21]
[339855324,1728072641043,-1012.3,0.00036986,120]
[339855325,1728072641052,-500.0,0.00036986,120]
[339855326,1728072641061,-500.0,0.00036986,14]
[339855327,1728072641071,-500.0,0.00036986,120]
[339855328,1728072641080,-1440.62,0.00036986,120]
[339855329,1728072641090,-500.0,0.00036986,120]
[339855330,1728072641099,-566.19,0.00036986,120]
[339855331,1728072641108,-659.64,0.00036986,120]
[339855332,1728072641117,-500.0,0.00036986,120]
[339855333,1728072641127,-1844.03,0.00036986,120]
[339855334,1728072641135,-3111.13,0.00036986,120]
[339855335,1728072641144,-500.0,0.00036986,120]
[339855336,1728072641153,-686.44,0.00036986,120]
[339855337,1728072641163,-500.0,0.00036986,120]
[339855338,1728072641172,-500.0,0.00036986,120]
[339855339,1728072641182,-500.0,0.00036986,120]
[339855340,1728072641193,-1560.97,0.00036986,120]
[339855341,1728072641203,-500.0,0.00036987,120]
[339855342,1728072641212,-500.0,0.00036987,120]
[339855343,1728072641222,-500.0,0.00036987,120]
[339855344,1728072641232,-1336.45,0.00036987,120]
[339855345,1728072641242,-500.0,0.00036987,120]
[339855346,1728072641253,-1336.48,0.00036987,120]
[339855347,1728072641263,-500.0,0.00036987,120]
[339855348,1728072641272,-500.0,0.00036987,120]
[339855349,1728072641281,-538.94,0.00036987,120]
[339855350,1728072641293,-500.0,0.00036987,120]
[339855351,1728072641302,-757.12,0.00036987,120]
[339855352,1728072641312,-616.09,0.00036987,120]
[339855353,1728072641321,-500.0,0.00036987,120]
[339855354,1728072641331,-500.0,0.00036987,120]
[339855355,1728072641341,-875.06,0.00036987,120]
[339855356,1728072641350,-500.0,0.00036987,120]
[339855357,1728072641359,-1132.41,0.00036987,120]
[339855358,1728072641369,-894.14,0.00036987,120]
[339855359,1728072641378,-500.0,0.00036987,120]
[339855360,1728072641388,-500.0,0.00036987,120]
[339855361,1728072641398,-592.05,0.00036987,120]
[339855362,1728072641407,-500.0,0.00036987,120]
[339855363,1728072641416,-671.38,0.00036987,120]
[339855364,1728072641426,-500.0,0.00036987,120]
[339855365,1728072641435,-500.0,0.00036987,120]
[339855366,1728072641445,-500.0,0.00036987,120]
[339855367,1728072641455,-1846.3,0.00036987,120]
[339855368,1728072641464,-500.0,0.00036987,120]
[339855369,1728072641474,-500.0,0.00036987,120]
[339855370,1728072641484,-500.0,0.00036987,120]
[339855371,1728072641494,-889.97,0.00036987,120]
[339855372,1728072641503,-500.0,0.00036987,120]
[339855373,1728072641513,-500.0,0.00036987,120]
[339855374,1728072641523,-4058.58,0.00036987,120]
[339855375,1728072641533,-628.76,0.00036987,120]
[339855376,1728072641543,-3402.8,0.00036987,120]
[339855377,1728072641552,-500.0,0.00036987,120]
[339855378,1728072641562,-1784.25,0.00036987,120]
[339855379,1728072641571,-500.0,0.00036987,120]
[339855380,1728072641581,-755.9,0.00036987,120]
[339855381,1728072641590,-500.0,0.00036987,120]
[339855382,1728072641600,-500.0,0.00036987,120]